[Event "Elitserien 2022/2023"]
[Site "Elite Hotel Marina Plaza, Kungstorget 6, Helsingborg, Sweden"]
[Date "2022.10.14"]
[Round "1.35"]
[White "Hjelm, Niclas"]
[Black "Kucuksari, Kaan"]
[Result "1-0"]
[TimeControl "90 minutes for 40 moves + 30 minutes for the rest of the game + 30 seconds per move from move one."]
[WhiteTitle "FM"]
[BlackTitle "FM"]
[WhiteFideId "1700502"]
[BlackFideId "6380166"]
[WhiteElo "2279"]
[BlackElo "2482"]

1. d4 {[%clk 01:30:23]} {[%emt 00:00:36]} Nf6 {[%clk 01:30:58]} {[%emt
00:00:03]} 2. c4 {[%clk 01:30:40]} {[%emt 00:00:12]} g6 {[%clk 01:31:26]}
{[%emt 00:00:03]} 3. Nc3 {[%clk 01:30:58]} {[%emt 00:00:11]} Bg7 {[%clk
01:31:53]} {[%emt 00:00:03]} 4. e4 {[%clk 01:30:33]} {[%emt 00:00:55]} d6
{[%clk 01:32:21]} {[%emt 00:00:04]} 5. Bg5 {[%clk 01:25:21]} {[%emt 00:05:41]}
c5 {[%clk 01:26:27]} {[%emt 00:06:24]} 6. d5 {[%clk 01:16:33]} {[%emt
00:09:18]} h6 {[%clk 01:22:21]} {[%emt 00:04:37]} 7. Bf4 {[%clk 01:08:19]}
{[%emt 00:08:42]} O-O {[%clk 01:19:49]} {[%emt 00:03:03]} 8. Be2 {[%clk
01:05:00]} {[%emt 00:03:48]} b5 {[%clk 00:58:36]} {[%emt 00:21:44]} 9. cxb5
{[%clk 01:04:39]} {[%emt 00:00:50]} a6 {[%clk 00:58:13]} {[%emt 00:00:55]} 10.
bxa6 {[%clk 00:46:48]} {[%emt 00:18:20]} Qb6 {[%clk 00:53:11]} {[%emt
00:05:31]} 11. Qd2 {[%clk 00:43:08]} {[%emt 00:04:11]} Bxa6 {[%clk 00:43:55]}
{[%emt 00:09:46]} 12. Bxh6 {[%clk 00:27:48]} {[%emt 00:15:50]} Bxh6 {[%clk
00:42:23]} {[%emt 00:02:02]} 13. Qxh6 {[%clk 00:28:07]} {[%emt 00:00:10]} Qxb2
{[%clk 00:42:40]} {[%emt 00:00:14]} 14. Rc1 {[%clk 00:28:12]} {[%emt 00:00:24]}
Qb4 {[%clk 00:29:33]} {[%emt 00:13:37]} 15. a3 {[%clk 00:12:27]} {[%emt
00:16:15]} Qxa3 {[%clk 00:28:22]} {[%emt 00:01:41]} 16. h4 {[%clk 00:12:39]}
{[%emt 00:00:18]} Bxe2 {[%clk 00:25:09]} {[%emt 00:03:44]} 17. Ngxe2 {[%clk
00:12:52]} {[%emt 00:00:17]} Ng4 {[%clk 00:21:56]} {[%emt 00:03:43]} 18. Qg5
{[%clk 00:08:11]} {[%emt 00:05:10]} Ne5 {[%clk 00:22:13]} {[%emt 00:00:15]} 19.
O-O {[%clk 00:07:43]} {[%emt 00:00:57]} f6 {[%clk 00:16:47]} {[%emt 00:05:56]}
20. Qg3 {[%clk 00:07:43]} {[%emt 00:00:29]} Kf7 {[%clk 00:14:22]} {[%emt
00:02:57]} 21. f4 {[%clk 00:07:25]} {[%emt 00:00:47]} Nc4 {[%clk 00:13:56]}
{[%emt 00:00:56]} 22. e5 {[%clk 00:07:15]} {[%emt 00:00:39]} Rg8 {[%clk
00:08:55]} {[%emt 00:05:34]} 23. h5 {[%clk 00:07:14]} {[%emt 00:00:30]} Na6
{[%clk 00:02:54]} {[%emt 00:06:32]} 24. exf6 {[%clk 00:07:02]} {[%emt
00:00:41]} exf6 {[%clk 00:02:28]} {[%emt 00:00:57]} 25. Ra1 {[%clk 00:07:08]}
{[%emt 00:00:22]} Qb2 {[%clk 00:00:38]} {[%emt 00:02:20]} 26. Rab1 {[%clk
00:06:29]} {[%emt 00:01:09]} Qc2 {[%clk 00:00:39]} {[%emt 00:00:30]} 27. Rb7+
{[%clk 00:05:54]} {[%emt 00:01:04]} Kf8 {[%clk 00:01:08]} {[%emt 00:00:02]} 28.
Qh4 {[%clk 00:05:25]} {[%emt 00:00:58]} Qf5 {[%clk 00:01:23]} {[%emt 00:00:15]}
29. Ng3 {[%clk 00:04:47]} {[%emt 00:01:08]} g5 {[%clk 00:01:45]} {[%emt
00:00:10]} 30. fxg5 {[%clk 00:04:31]} {[%emt 00:00:46]} Qxg5 {[%clk 00:01:57]}
{[%emt 00:00:18]} 31. Rxf6+ {[%clk 00:03:31]} {[%emt 00:01:29]} Ke8 {[%clk
00:02:26]} 32. Qxg5 Rxg5 {[%clk 00:02:54]} 33. Nce4 {[%clk 00:01:19]} {[%emt
00:00:23]} Re5 {[%clk 00:02:41]} {[%emt 00:00:45]} 34. h6 {[%clk 00:01:15]}
{[%emt 00:00:35]} Nc7 {[%clk 00:02:07]} {[%emt 00:01:03]} 35. Rxc7 {[%clk
00:00:56]} {[%emt 00:00:50]} Kd8 {[%clk 00:02:25]} {[%emt 00:00:11]} 36. Rf8+
{[%clk 00:00:53]} {[%emt 00:00:34]} Kxc7 {[%clk 00:02:53]} {[%emt 00:00:03]} 37.
Rxa8 {[%clk 00:01:13]} {[%emt 00:00:09]} Nb6 {[%clk 00:02:39]} {[%emt
00:00:43]} 38. Ra7+ {[%clk 00:01:00]} {[%emt 00:00:44]} Kb8 {[%clk 00:03:04]}
{[%emt 00:00:05]} 39. Rg7 {[%clk 00:01:14]} {[%emt 00:00:15]} 1-0

[Event "Elitserien 2022/2023"]
[Site "Elite Hotel Marina Plaza, Kungstorget 6, Helsingborg, Sweden"]
[Date "2022.10.14"]
[Round "1.36"]
[White "Storme, Isak"]
[Black "Jaderberg, Bjorn"]
[Result "1-0"]
[TimeControl "90 minutes for 40 moves + 30 minutes for the rest of the game + 30 seconds per move from move one."]
[WhiteTitle "IM"]
[WhiteFideId "1728113"]
[BlackFideId "1712403"]
[WhiteElo "2424"]
[BlackElo "2147"]

1. Nf3 {[%clk 01:30:52]} {[%emt 00:00:07]} g6 {[%clk 01:30:47]} {[%emt
00:00:15]} 2. d4 {[%clk 01:29:59]} {[%emt 00:01:22]} d6 {[%clk 01:30:54]}
{[%emt 00:00:23]} 3. e4 {[%clk 01:30:13]} {[%emt 00:00:16]} Bg7 {[%clk
01:31:11]} {[%emt 00:00:12]} 4. Be3 {[%clk 01:30:16]} {[%emt 00:00:28]} a6
{[%clk 01:30:09]} {[%emt 00:01:34]} 5. c4 {[%clk 01:29:37]} {[%emt 00:01:07]}
Nd7 {[%clk 01:28:33]} {[%emt 00:02:06]} 6. Nc3 {[%clk 01:28:21]} {[%emt
00:01:46]} b6 {[%clk 01:20:58]} {[%emt 00:08:05]} 7. h4 {[%clk 01:15:55]}
{[%emt 00:12:56]} h5 {[%clk 01:17:34]} {[%emt 00:03:54]} 8. Be2 {[%clk
01:13:25]} {[%emt 00:03:01]} c5 {[%clk 01:06:41]} {[%emt 00:11:23]} 9. d5
{[%clk 01:09:08]} {[%emt 00:04:47]} Ngf6 {[%clk 01:03:10]} {[%emt 00:04:00]} 10.
Qc2 {[%clk 01:06:19]} {[%emt 00:03:19]} Qc7 {[%clk 00:57:25]} {[%emt 00:06:15]}
11. Ng5 {[%clk 01:05:18]} {[%emt 00:01:30]} Ne5 {[%clk 00:55:33]} {[%emt
00:02:23]} 12. f3 {[%clk 01:04:49]} {[%emt 00:00:59]} Bh6 {[%clk 00:48:13]}
{[%emt 00:07:50]} 13. Qd2 {[%clk 00:57:49]} {[%emt 00:07:29]} Ng8 {[%clk
00:48:06]} {[%emt 00:00:37]} 14. O-O {[%clk 00:56:09]} {[%emt 00:02:10]} Bd7
{[%clk 00:44:01]} {[%emt 00:04:36]} 15. f4 {[%clk 00:55:50]} {[%emt 00:00:49]}
Ng4 {[%clk 00:38:23]} {[%emt 00:06:09]} 16. Bxg4 {[%clk 00:56:10]} {[%emt
00:00:09]} Bxg4 {[%clk 00:33:47]} {[%emt 00:05:06]} 17. e5 {[%clk 00:52:51]}
{[%emt 00:03:50]} f6 {[%clk 00:32:03]} {[%emt 00:02:14]} 18. Ne6 {[%clk
00:52:15]} {[%emt 00:01:06]} Qd7 {[%clk 00:30:22]} {[%emt 00:02:11]} 19. f5
{[%clk 00:46:40]} {[%emt 00:06:05]} Bxf5 {[%clk 00:29:41]} {[%emt 00:01:10]} 20.
Rxf5 {[%clk 00:43:35]} {[%emt 00:03:36]} gxf5 {[%clk 00:29:41]} {[%emt
00:00:29]} 21. Qe2 {[%clk 00:27:43]} {[%emt 00:16:22]} Bxe3+ {[%clk 00:23:46]}
{[%emt 00:06:25]} 22. Qxe3 {[%clk 00:28:06]} {[%emt 00:00:07]} Nh6 {[%clk
00:20:32]} {[%emt 00:03:44]} 23. exf6 {[%clk 00:27:35]} {[%emt 00:01:01]} Kf7
{[%clk 00:19:47]} {[%emt 00:01:16]} 24. Qg5 {[%clk 00:22:54]} {[%emt 00:05:10]}
Rag8 {[%clk 00:19:57]} {[%emt 00:00:20]} 25. Qxh5+ {[%clk 00:23:09]} {[%emt
00:00:15]} Rg6 {[%clk 00:20:04]} {[%emt 00:00:23]} 26. Nf4 {[%clk 00:22:32]}
{[%emt 00:01:07]} Rhg8 {[%clk 00:20:23]} {[%emt 00:00:11]} 27. Nxg6 {[%clk
00:22:30]} {[%emt 00:00:32]} Rxg6 {[%clk 00:20:44]} {[%emt 00:00:09]} 28. Ne2
{[%clk 00:22:47]} {[%emt 00:00:12]} 1-0

[Event "Elitserien 2022/2023"]
[Site "Elite Hotel Marina Plaza, Kungstorget 6, Helsingborg, Sweden"]
[Date "2022.10.14"]
[Round "1.37"]
[White "Lagerborg, Krister"]
[Black "Jogstad, Martin"]
[Result "0-1"]
[TimeControl "90 minutes for 40 moves + 30 minutes for the rest of the game + 30 seconds per move from move one."]
[BlackTitle "FM"]
[WhiteFideId "1712411"]
[BlackFideId "1715364"]
[WhiteElo "2103"]
[BlackElo "2386"]

1. e4 {[%clk 01:30:55]} {[%emt 00:00:05]} c6 {[%clk 01:30:56]} {[%emt
00:00:04]} 2. d4 {[%clk 01:31:10]} {[%emt 00:00:14]} d5 {[%clk 01:31:22]}
{[%emt 00:00:04]} 3. e5 {[%clk 01:31:32]} {[%emt 00:00:09]} Bf5 {[%clk
01:31:49]} {[%emt 00:00:03]} 4. Nf3 {[%clk 01:31:41]} {[%emt 00:00:21]} e6
{[%clk 01:32:12]} {[%emt 00:00:06]} 5. Be2 {[%clk 01:31:51]} c5 {[%clk
01:32:37]} {[%emt 00:00:27]} 6. Be3 {[%clk 01:31:41]} Nc6 {[%clk 01:32:48]}
{[%emt 00:00:58]} 7. dxc5 {[%clk 01:30:48]} Nge7 {[%clk 01:20:53]} {[%emt
00:13:47]} 8. O-O {[%clk 01:26:38]} {[%emt 00:04:41]} Bg4 {[%clk 01:17:45]}
{[%emt 00:03:38]} 9. c3 {[%clk 01:19:42]} {[%emt 00:07:26]} Nf5 {[%clk
01:12:38]} {[%emt 00:05:37]} 10. Bd4 {[%clk 01:18:23]} {[%emt 00:01:49]} Bxf3
{[%clk 01:06:37]} {[%emt 00:06:32]} 11. Bxf3 {[%clk 01:17:57]} {[%emt
00:00:55]} Nfxd4 {[%clk 01:06:49]} {[%emt 00:00:19]} 12. cxd4 {[%clk 01:18:05]}
{[%emt 00:00:22]} Qh4 {[%clk 01:07:10]} {[%emt 00:00:09]} 13. Nc3 {[%clk
01:10:41]} {[%emt 00:07:55]} Qxd4 {[%clk 01:05:04]} {[%emt 00:02:35]} 14. Nb5
{[%clk 01:05:41]} {[%emt 00:05:31]} Qxd1 {[%clk 01:04:14]} {[%emt 00:01:20]} 15.
Rfxd1 {[%clk 01:04:20]} {[%emt 00:01:50]} Rc8 {[%clk 00:56:54]} {[%emt
00:07:49]} 16. Nd6+ {[%clk 01:03:44]} {[%emt 00:01:07]} Bxd6 {[%clk 00:57:16]}
{[%emt 00:00:08]} 17. exd6 {[%clk 01:04:04]} {[%emt 00:00:11]} b6 {[%clk
00:54:14]} {[%emt 00:03:31]} 18. Rac1 {[%clk 00:52:49]} {[%emt 00:11:44]} bxc5
{[%clk 00:53:37]} {[%emt 00:01:07]} 19. Rxc5 {[%clk 00:53:00]} {[%emt
00:00:19]} Kd7 {[%clk 00:53:51]} {[%emt 00:00:16]} 20. Be2 {[%clk 00:47:48]}
{[%emt 00:05:42]} Kxd6 {[%clk 00:51:56]} {[%emt 00:02:25]} 21. Rb5 {[%clk
00:47:10]} {[%emt 00:01:08]} Rb8 {[%clk 00:50:26]} {[%emt 00:02:00]} 22. f4
{[%clk 00:46:14]} {[%emt 00:01:27]} Rxb5 {[%clk 00:47:58]} {[%emt 00:02:58]} 23.
Bxb5 {[%clk 00:46:27]} {[%emt 00:00:17]} Rb8 {[%clk 00:48:06]} {[%emt
00:00:21]} 24. Bxc6 {[%clk 00:46:30]} {[%emt 00:00:28]} Kxc6 {[%clk 00:48:31]}
{[%emt 00:00:04]} 25. b3 {[%clk 00:46:12]} {[%emt 00:00:48]} Kd6 {[%clk
00:46:21]} {[%emt 00:02:40]} 26. Kf2 {[%clk 00:45:40]} {[%emt 00:01:03]} Rc8
{[%clk 00:46:36]} {[%emt 00:00:15]} 27. Rd2 {[%clk 00:45:59]} {[%emt 00:00:10]}
Rc3 {[%clk 00:46:48]} {[%emt 00:00:17]} 28. g3 {[%clk 00:45:18]} {[%emt
00:01:11]} f6 {[%clk 00:46:56]} {[%emt 00:00:23]} 29. Ke1 {[%clk 00:43:34]}
{[%emt 00:02:13]} Rc1+ {[%clk 00:44:39]} {[%emt 00:02:48]} 30. Ke2 {[%clk
00:43:52]} {[%emt 00:00:12]} e5 {[%clk 00:44:58]} {[%emt 00:00:11]} 31. fxe5+
{[%clk 00:42:30]} {[%emt 00:01:53]} fxe5 {[%clk 00:45:25]} {[%emt 00:00:02]} 32.
Kd3 {[%clk 00:40:54]} {[%emt 00:02:05]} Rf1 {[%clk 00:43:39]} {[%emt 00:02:16]}
33. Ke2 {[%clk 00:39:45]} {[%emt 00:01:40]} Rh1 {[%clk 00:43:25]} {[%emt
00:00:43]} 34. Kd3 {[%clk 00:39:42]} {[%emt 00:00:34]} d4 {[%clk 00:43:23]}
{[%emt 00:00:33]} 35. Ke4 {[%clk 00:37:18]} {[%emt 00:02:53]} Re1+ {[%clk
00:43:14]} {[%emt 00:00:39]} 36. Kf3 {[%clk 00:37:16]} {[%emt 00:00:31]} Kd5
{[%clk 00:42:46]} {[%emt 00:00:59]} 37. Rc2 {[%clk 00:35:45]} {[%emt 00:02:01]}
d3 {[%clk 00:43:08]} {[%emt 00:00:08]} 38. Rc8 {[%clk 00:33:11]} {[%emt
00:03:03]} e4+ {[%clk 00:43:24]} {[%emt 00:00:15]} 39. Kf4 {[%clk 00:32:10]}
{[%emt 00:01:31]} Rf1+ {[%clk 00:43:24]} {[%emt 00:00:30]} 40. Ke3 {[%clk
00:31:53]} {[%emt 00:00:46]} Re1+ {[%clk 00:43:24]} {[%emt 00:00:30]} 41. Kf4
{[%clk 00:31:58]} {[%emt 00:00:26]} g5+ {[%clk 00:43:46]} {[%emt 00:00:08]} 42.
Kxg5 {[%clk 00:29:43]} {[%emt 00:02:45]} e3 {[%clk 00:43:54]} {[%emt 00:00:22]}
43. Kf4 {[%clk 00:27:33]} {[%emt 00:02:40]} d2 {[%clk 00:44:13]} {[%emt
00:00:11]} 0-1

[Event "Elitserien 2022/2023"]
[Site "Elite Hotel Marina Plaza, Kungstorget 6, Helsingborg, Sweden"]
[Date "2022.10.14"]
[Round "1.38"]
[White "Mauritsson, Sebastian"]
[Black "Lindeman, Sven"]
[Result "1-0"]
[TimeControl "90 minutes for 40 moves + 30 minutes for the rest of the game + 30 seconds per move from move one."]
[WhiteTitle "FM"]
[WhiteFideId "1707892"]
[BlackFideId "1700790"]
[WhiteElo "2383"]
[BlackElo "2161"]

1. e4 {[%clk 01:30:58]} {[%emt 00:00:03]} e5 {[%clk 01:30:52]} 2. Nf3 {[%clk
01:31:17]} {[%emt 00:00:18]} Nc6 {[%clk 01:31:15]} 3. d4 {[%clk 01:31:39]}
{[%emt 00:00:15]} exd4 {[%clk 01:31:34]} 4. Nxd4 {[%clk 01:32:06]} {[%emt
00:00:14]} Qf6 {[%clk 01:31:45]} 5. Be3 {[%clk 01:31:57]} {[%emt 00:00:58]} Bc5
{[%clk 01:31:27]} 6. c3 {[%clk 01:32:20]} {[%emt 00:00:56]} Nge7 {[%clk
01:31:49]} {[%emt 00:00:07]} 7. Bb5 {[%clk 01:32:42]} {[%emt 00:00:08]} Bb6
{[%clk 01:28:54]} {[%emt 00:03:25]} 8. O-O {[%clk 01:33:03]} {[%emt 00:00:10]}
O-O {[%clk 01:25:16]} {[%emt 00:04:08]} 9. a4 {[%clk 01:33:28]} {[%emt
00:00:05]} a6 {[%clk 01:22:42]} {[%emt 00:03:03]} 10. Bc4 {[%clk 01:33:52]}
{[%emt 00:00:07]} Ne5 {[%clk 01:19:18]} {[%emt 00:03:54]} 11. Be2 {[%clk
01:34:15]} {[%emt 00:00:07]} c5 {[%clk 01:12:43]} {[%emt 00:07:04]} 12. Nc2
{[%clk 01:19:01]} {[%emt 00:15:45]} d6 {[%clk 01:11:17]} {[%emt 00:01:55]} 13.
f4 {[%clk 01:17:30]} {[%emt 00:02:02]} N5c6 {[%clk 01:10:38]} {[%emt 00:01:09]}
14. Nd2 {[%clk 01:10:49]} {[%emt 00:07:11]} Ng6 {[%clk 01:07:23]} {[%emt
00:03:45]} 15. Qe1 {[%clk 00:57:36]} {[%emt 00:13:43]} Qe7 {[%clk 01:02:25]}
{[%emt 00:05:27]} 16. f5 {[%clk 00:47:52]} {[%emt 00:10:15]} Nge5 {[%clk
01:02:45]} {[%emt 00:00:10]} 17. g4 {[%clk 00:47:16]} {[%emt 00:01:06]} f6
{[%clk 01:00:30]} {[%emt 00:02:45]} 18. Qg3 {[%clk 00:44:15]} {[%emt 00:03:30]}
Bc7 {[%clk 01:00:28]} {[%emt 00:00:31]} 19. g5 {[%clk 00:40:31]} {[%emt
00:04:16]} Kh8 {[%clk 01:00:21]} {[%emt 00:00:36]} 20. g6 {[%clk 00:39:51]}
{[%emt 00:01:11]} d5 {[%clk 00:56:04]} {[%emt 00:04:46]} 21. Qh4 {[%clk
00:34:00]} {[%emt 00:06:22]} h6 {[%clk 00:56:16]} {[%emt 00:00:18]} 22. exd5
{[%clk 00:34:24]} {[%emt 00:00:06]} Nd8 {[%clk 00:54:24]} {[%emt 00:02:22]} 23.
Ne4 {[%clk 00:28:35]} {[%emt 00:06:19]} b6 {[%clk 00:53:13]} {[%emt 00:01:40]}
24. d6 {[%clk 00:27:25]} {[%emt 00:01:42]} Bxd6 {[%clk 00:53:32]} {[%emt
00:00:11]} 25. Nxd6 {[%clk 00:27:52]} {[%emt 00:00:03]} Nb7 {[%clk 00:51:05]}
{[%emt 00:02:56]} 26. Nxc8 {[%clk 00:25:23]} {[%emt 00:03:00]} Raxc8 {[%clk
00:51:21]} {[%emt 00:00:13]} 27. Bxa6 {[%clk 00:25:05]} {[%emt 00:00:49]} Rcd8
{[%clk 00:51:13]} {[%emt 00:00:38]} 28. Be2 {[%clk 00:22:32]} {[%emt 00:03:03]}
Nd6 {[%clk 00:48:42]} {[%emt 00:03:01]} 29. a5 {[%clk 00:19:18]} {[%emt
00:03:44]} Qd7 {[%clk 00:49:01]} {[%emt 00:00:11]} 30. Qf4 {[%clk 00:17:44]}
{[%emt 00:02:04]} Qb7 {[%clk 00:48:03]} {[%emt 00:01:27]} 31. axb6 {[%clk
00:17:43]} {[%emt 00:00:32]} Rfe8 {[%clk 00:45:24]} {[%emt 00:03:09]} 32. Ra7
{[%clk 00:14:35]} {[%emt 00:03:38]} Qe4 {[%clk 00:44:27]} {[%emt 00:01:26]} 33.
Qxe4 {[%clk 00:14:43]} {[%emt 00:00:24]} 1-0

[Event "Elitserien 2022/2023"]
[Site "Elite Hotel Marina Plaza, Kungstorget 6, Helsingborg, Sweden"]
[Date "2022.10.14"]
[Round "1.39"]
[White "Stavenberg, Karl"]
[Black "Smith, Axel"]
[Result "0-1"]
[TimeControl "90 minutes for 40 moves + 30 minutes for the rest of the game + 30 seconds per move from move one."]
[BlackTitle "GM"]
[WhiteFideId "1753630"]
[BlackFideId "1707930"]
[WhiteElo "2115"]
[BlackElo "2402"]

1. d4 {[%clk 01:30:57]} {[%emt 00:00:02]} Nf6 {[%clk 01:30:59]} {[%emt
00:00:02]} 2. c4 {[%clk 01:31:14]} {[%emt 00:00:13]} a6 {[%clk 01:31:28]}
{[%emt 00:00:01]} 3. g3 {[%clk 01:28:36]} {[%emt 00:03:08]} c6 {[%clk
01:31:33]} {[%emt 00:00:24]} 4. Bg2 {[%clk 01:28:27]} {[%emt 00:00:39]} d5
{[%clk 01:32:02]} {[%emt 00:00:02]} 5. Qc2 {[%clk 01:22:21]} {[%emt 00:06:35]}
g6 {[%clk 01:29:51]} {[%emt 00:02:42]} 6. Nf3 {[%clk 01:20:36]} {[%emt
00:02:14]} Bg7 {[%clk 01:29:53]} {[%emt 00:00:28]} 7. O-O {[%clk 01:19:19]}
{[%emt 00:01:47]} O-O {[%clk 01:30:21]} {[%emt 00:00:03]} 8. a4 {[%clk
01:16:10]} {[%emt 00:03:39]} a5 {[%clk 01:19:06]} {[%emt 00:11:46]} 9. cxd5
{[%clk 01:06:05]} {[%emt 00:10:34]} cxd5 {[%clk 01:18:41]} {[%emt 00:00:55]} 10.
Nc3 {[%clk 01:00:19]} {[%emt 00:06:15]} Nc6 {[%clk 01:18:44]} {[%emt 00:00:28]}
11. Bg5 {[%clk 00:59:00]} {[%emt 00:01:48]} h6 {[%clk 01:04:40]} {[%emt
00:14:34]} 12. Bxf6 {[%clk 00:57:00]} {[%emt 00:02:30]} Bxf6 {[%clk 01:04:56]}
{[%emt 00:00:15]} 13. Qb3 {[%clk 00:52:12]} {[%emt 00:05:19]} Nb4 {[%clk
01:02:27]} {[%emt 00:02:58]} 14. Ne5 {[%clk 00:47:00]} {[%emt 00:05:42]} Be6
{[%clk 00:49:52]} {[%emt 00:13:05]} 15. Nb5 {[%clk 00:44:55]} {[%emt 00:02:35]}
Qb6 {[%clk 00:48:18]} {[%emt 00:02:05]} 16. Rac1 {[%clk 00:41:36]} {[%emt
00:03:48]} Rac8 {[%clk 00:42:15]} {[%emt 00:06:33]} 17. Qe3 {[%clk 00:26:54]}
{[%emt 00:15:11]} Kg7 {[%clk 00:36:51]} {[%emt 00:05:55]} 18. Qd2 {[%clk
00:26:37]} {[%emt 00:00:47]} Rfd8 {[%clk 00:29:33]} {[%emt 00:07:48]} 19. e3
{[%clk 00:24:38]} {[%emt 00:02:30]} Bxe5 {[%clk 00:24:11]} {[%emt 00:05:52]} 20.
dxe5 {[%clk 00:25:01]} {[%emt 00:00:07]} Nc6 {[%clk 00:24:27]} {[%emt
00:00:14]} 21. f4 {[%clk 00:22:30]} {[%emt 00:03:00]} d4 {[%clk 00:18:36]}
{[%emt 00:06:21]} 22. exd4 {[%clk 00:19:56]} {[%emt 00:03:04]} Nxd4 {[%clk
00:18:16]} {[%emt 00:00:51]} 23. Nxd4 {[%clk 00:20:10]} {[%emt 00:00:16]} Rxd4
{[%clk 00:17:08]} {[%emt 00:01:38]} 24. Qf2 {[%clk 00:20:28]} {[%emt 00:00:11]}
Rxc1 {[%clk 00:13:32]} {[%emt 00:04:06]} 25. Rxc1 {[%clk 00:20:36]} {[%emt
00:00:22]} Qb4 {[%clk 00:13:50]} {[%emt 00:00:13]} 0-1

[Event "Elitserien 2022/2023"]
[Site "Elite Hotel Marina Plaza, Kungstorget 6, Helsingborg, Sweden"]
[Date "2022.10.14"]
[Round "1.40"]
[White "Nord, Alexander"]
[Black "Wisdahl, Peter"]
[Result "1-0"]
[TimeControl "90 minutes for 40 moves + 30 minutes for the rest of the game + 30 seconds per move from move one."]
[WhiteTitle "CM"]
[WhiteFideId "1738135"]
[BlackFideId "1714023"]
[WhiteElo "2177"]
[BlackElo "2009"]

1. e4 {[%clk 01:30:56]} {[%emt 00:00:03]} c5 {[%clk 01:30:30]} {[%emt
00:00:29]} 2. Nf3 {[%clk 01:31:19]} {[%emt 00:00:08]} Nc6 {[%clk 01:30:38]}
{[%emt 00:00:21]} 3. Bb5 {[%clk 01:31:19]} {[%emt 00:00:31]} g6 {[%clk
01:29:57]} {[%emt 00:01:13]} 4. O-O {[%clk 01:31:17]} {[%emt 00:00:30]} Bg7
{[%clk 01:30:14]} {[%emt 00:00:13]} 5. c3 {[%clk 01:31:05]} {[%emt 00:00:43]}
e5 {[%clk 01:30:19]} {[%emt 00:00:25]} 6. d4 {[%clk 01:28:58]} {[%emt
00:02:37]} cxd4 {[%clk 01:25:56]} {[%emt 00:04:52]} 7. cxd4 {[%clk 01:27:28]}
{[%emt 00:02:00]} Nxd4 {[%clk 01:21:40]} {[%emt 00:04:46]} 8. Nxd4 {[%clk
01:17:49]} {[%emt 00:10:10]} exd4 {[%clk 01:21:58]} {[%emt 00:00:11]} 9. Bf4
{[%clk 01:16:57]} {[%emt 00:01:22]} Ne7 {[%clk 01:11:43]} {[%emt 00:10:44]} 10.
Nd2 {[%clk 01:07:39]} {[%emt 00:09:48]} O-O {[%clk 01:10:10]} {[%emt 00:02:04]}
11. Bd6 {[%clk 00:54:41]} {[%emt 00:13:27]} Re8 {[%clk 01:07:20]} {[%emt
00:03:20]} 12. Qb3 {[%clk 00:49:18]} {[%emt 00:05:53]} Nc6 {[%clk 00:57:59]}
{[%emt 00:09:52]} 13. f4 {[%clk 00:36:19]} {[%emt 00:13:29]} Na5 {[%clk
00:49:55]} {[%emt 00:08:34]} 14. Qd5 {[%clk 00:33:29]} {[%emt 00:03:19]} a6
{[%clk 00:31:48]} {[%emt 00:18:36]} 15. Bd3 {[%clk 00:32:07]} {[%emt 00:01:53]}
Nc6 {[%clk 00:14:55]} {[%emt 00:17:25]} 16. Bc4 {[%clk 00:25:33]} {[%emt
00:07:03]} Qf6 {[%clk 00:13:35]} {[%emt 00:01:50]} 17. e5 {[%clk 00:20:03]}
{[%emt 00:06:01]} Qe6 {[%clk 00:09:58]} {[%emt 00:04:07]} 18. Qf3 {[%clk
00:19:12]} {[%emt 00:01:20]} Qf5 {[%clk 00:09:15]} {[%emt 00:01:13]} 19. Ne4
{[%clk 00:18:06]} {[%emt 00:01:37]} h5 {[%clk 00:07:51]} {[%emt 00:01:54]} 20.
h3 {[%clk 00:18:07]} {[%emt 00:00:29]} h4 {[%clk 00:07:17]} {[%emt 00:01:04]}
21. Ng5 {[%clk 00:17:45]} {[%emt 00:00:51]} Nd8 {[%clk 00:02:16]} {[%emt
00:05:31]} 22. Bd3 {[%clk 00:17:42]} 1-0